Cogmind - Beta 14 --- EXPLORER MODE // 2024.09.18 @ 00:23:17 Player: Foxtrot Result: Destroyed by Y-45 Defender with Heavy Assault Rifle Performance ------------- Evolutions (2) 1000 Regions Visited (3) 600 Robots Destroyed (52) 260 Value Destroyed (1415) 1415 Prototype IDs (4) 80 Alien Tech Used (0) 0 Bonus (0) 0 TOTAL SCORE: 3355 Bonus ------- None Cogmind --------- Core Integrity 0/550 Matter 66/300 Energy 100/100 System Corruption 2% Temperature Cool (9) Movement Core (2050) Ox40 Location -8/Materials Parts ------- > --- POWER (3) -------- (None) > --- PROPULSION (3) --- (None) > --- UTILITY (3) ------ Large Storage Unit Large Storage Unit Huge Storage Unit > --- WEAPON (3) ------- Heavy Hammer > --- INVENTORY (25) --- Targeting Computer Grenade Launcher Peak State ------------ > --- POWER ------------ Deuterium Engine Light Deuterium Engine Nuclear Core > --- PROPULSION ------- Advanced Treads Advanced Treads Advanced Treads > --- UTILITY ---------- Large Storage Unit Huge Storage Unit > --- WEAPON ----------- Shock Rifle Rocket Launcher Mining Claw > --- INVENTORY -------- Large Storage Unit Targeting Computer Heavy Particle Gun Assault Rifle Grenade Launcher Heavy Hammer [Rating: 27] Favorites ----------- Power Light Ion Engine Engine Light Ion Engine Power Core Nuclear Core Propulsion Advanced Treads Treads Advanced Treads Wheel Wheel Hover Unit Hover Unit Utility Large Storage Unit Device Seismic Detector Storage Large Storage Unit Processor Targeting Computer Protection Light Armor Plating Weapon Light Assault Rifle Energy Gun Shock Rifle Ballistic Gun Light Assault Rifle Launcher Rocket Launcher Impact Weapon Heavy Hammer Slashing Weapon Mining Claw Build | -11 -10 -9 -8 ------- Run | Yrd Mat Mat Mat Slots Evolved 5 | . 1 2 2 Power 2 | . 1 1 . Propulsion 1 | . . . 1 Utility 1 | . . . 1 Weapon 1 | . . 1 . Parts Attached 29 | 8 5 3 13 Power 5 | 1 1 . 3 Engine 4 | 1 1 . 2 Core 1 | . . . 1 Reactor . | . . . . Propulsion 6 | 2 1 2 1 Treads 3 | . . 2 1 Leg . | . . . . Wheel 2 | 2 . . . Hover 1 | . 1 . . Flight . | . . . . Utility 7 | 3 2 1 1 Device 1 | 1 . . . Storage 4 | . 2 1 1 Processor 1 | 1 . . . Hackware . | . . . . Protection 1 | 1 . . . Artifact . | . . . . Weapon 11 | 2 1 . 8 Energy Gun 2 | . . . 2 Energy Cannon . | . . . . Ballistic Gun 4 | 2 1 . 1 Ballistic Cannon . | . . . . Launcher 3 | . . . 3 Special Weapon . | . . . . Impact Weapon 1 | . . . 1 Slashing Weapon 1 | . . . 1 Piercing Weapon . | . . . . Special Melee Weapon . | . . . . Unidentified Prototypes 1 | . . . 1 Parts Lost 15 | . 1 1 13 Power 5 | . 1 1 3 Propulsion 3 | . . . 3 Utility . | . . . . Weapon 7 | . . . 7 Highest Loss Streak 6 | . 1 1 6 To Critical Strikes . | . . . . Average Slot Usage (%) 74 | . 85 63 58 Engine 15 | . 22 6 5 Treads 5 | . . 15 11 Hover 7 | . 11 2 . Storage 21 | . 24 20 16 Ballistic Gun 19 | . 25 20 8 Slashing Weapon 1 | . . . 6 Peak Build Rating 27 | 7 10 13 27 Average Rating 10 | 4 8 11 14 On Entrance 6 | . 7 7 12 Naked Turns . | . . . . Heaviest Build 130 | 10 50 104 130 Greatest Support 66 | 20 20 44 66 Greatest Overweight (x) 41 | . 8 7 41 Average Overweight (x) 4 | . 7 1 6 Largest Inventory Capacity 25 | 5 15 25 25 Average Capacity 17 | 5 14 17 25 Most Carried 15 | 2 15 9 10 Average Carried 9 | . 12 7 5 Final Capacity 25 | 5 15 25 25 Final Carried 9 | 2 5 9 2 Class Distribution -------------------- 100% | Hacker-Mutant Dominant Class ---------------- Hacker-Mutant | -10/Materials Hacker-Mutant | -9/Materials Hacker-Mutant | -8/Materials Resources | -11 -10 -9 -8 ----------- Run | Yrd Mat Mat Mat Matter Collected 950 | 292 198 140 320 Remotely . | . . . . Salvage Created 1594 | 31 260 431 872 Parts 102 | 3 18 27 54 Haulers Intercepted 1 | . . . 1 Recyclers Shooed 3 | . . . 3 Parts Field Recycled . | . . . . Retrieved Matter . | . . . . Parts Self-Destructed . | . . . . Prevented . | . . . . Kills | -11 -10 -9 -8 ------- Run | Yrd Mat Mat Mat Combat Hostiles Destroyed 33 | 1 6 10 16 Guns 24 | 1 6 10 7 AOE 9 | . . . 9 Classes Destroyed 11 | 1 3 1 6 Worker 8 | . . . 8 Builder 4 | . 1 . 3 Tunneler 1 | . . . 1 Hauler 1 | . . . 1 Recycler 1 | . . . 1 Operator 1 | . . . 1 Watcher 3 | . 2 1 . Swarmer 5 | . 2 3 . Grunt 23 | 1 4 4 14 Sentry 4 | . . 3 1 Hunter 1 | . . . 1 Best Kill Streak 12 | 1 2 7 12 Combat Bots Only 5 | 1 2 3 5 Max Kills in Single Turn 4 | 1 2 1 4 Gunslinging 1 | . 1 . . Exploded 2 | . . . 2 Melee . | . . . . Uniques/NPCs Destroyed . | . . . . Combat | -11 -10 -9 -8 -------- Run | Yrd Mat Mat Mat Hostile Shots Fired 320 | 10 36 40 234 Missed 87 | 5 13 15 54 Damage Taken 2219 | 32 160 176 1851 Core 617 | 6 26 31 554 Absorbed by Shields . | . . . . Ignored by Resistances 1343 | 22 101 114 1106 Core Remaining (%) 92 | 97 87 92 . Volleys Fired 128 | 3 29 23 73 Largest 2 | 2 2 2 2 Hottest 83 | 40 43 43 83 Shots Fired 218 | 6 58 46 108 Gun 202 | 6 58 46 92 Cannon . | . . . . Launcher 16 | . . . 16 Special . | . . . . Kinetic 200 | 6 58 46 90 Thermal . | . . . . Explosive 16 | . . . 16 Electromagnetic 2 | . . . 2 Robot Hit Streak 30 | 3 11 14 30 Robot Miss Streak 2 | 1 2 2 2 Penetration Max . | . . . . Secondary Targets 3 | . 2 1 . Max Gunslinging Chain 1 | . 1 1 . Shots Hit Robots 167 | 4 34 34 95 Core Hits 110 | 3 17 18 72 Critical Kills 1 | . . . 1 Critical Parts Destroyed 2 | 1 . 1 . Critical Strikes 3 | 1 . 1 1 Destroy 3 | 1 . 1 1 Melee Attacks 3 | . . . 3 Impact . | . . . . Slashing 3 | . . . 3 Piercing . | . . . . Sneak Attacks 2 | . . . 2 Combat Hostiles . | . . . . Follow-up Attacks . | . . . . Damage Inflicted 3182 | 46 374 383 2379 Guns 1609 | 46 370 383 810 Cannons . | . . . . Explosions 1447 | . . . 1447 Melee 120 | . . . 120 Ramming 6 | . 4 . 2 Kinetic 1572 | 46 370 383 773 Thermal . | . . . . Explosive 1421 | . . . 1421 Electromagnetic 63 | . . . 63 Impact . | . . . . Slashing 120 | . . . 120 Piercing . | . . . . Highest Corruption 2 | . 2 . 2 Average Corruption 1 | . 1 . 2 Corruption Purged . | . . . . Corruption Blocked . | . . . . Effects 7 | . 6 . 1 Message Errors 2 | . 2 . . Matter Fused 2 | . 2 . . Heat Flow Errors 1 | . 1 . . Energy Discharges 1 | . . . 1 Data Loss (minor) 1 | . 1 . . Overload Shots . | . . . . Overflow Damage 43 | . . . 43 Projectiles . | . . . . Explosions 27 | . . . 27 Melee 16 | . . . 16 Knockbacks . | . . . . Impact . | . . . . Kinetic . | . . . . Secondary . | . . . . Self-Inflicted Damage 71 | . 2 . 69 Shots 4 | . . . 4 Rammed 3 | . 2 . 1 Targets Rammed 3 | . 2 . 1 Kicked . | . . . . Crushed . | . . . . Highest Temperature 487 | 24 182 7 487 Average Temperature 142 | 13 34 4 216 Received Heat Transfer 1581 | 30 114 114 1323 Effects 19 | . . . 19 Shutdowns 9 | . . . 9 Interference 3 | . . . 3 Matter Decay 2 | . . . 2 Short Circuit 1 | . . . 1 Damage (minor) 2 | . . . 2 Damage (major) 2 | . . . 2 Siege Activations . | . . . . Robots Corrupted . | . . . . Combat Hostiles . | . . . . Parts Fried . | . . . . Impact Corruptions . | . . . . Robots Melted . | . . . . Combat Hostiles . | . . . . Parts Melted . | . . . . Heat Transferred . | . . . . Parts Sabotaged . | . . . . Parts Stolen . | . . . . Parts Stripped . | . . . . Power Chain Reactions . | . . . . Alert | -11 -10 -9 -8 ------- Run | Yrd Mat Mat Mat Peak Influence 285 | 20 87 201 285 Initial 49 | . 9 14 49 Average 64 | 3 24 79 146 Maximum Alert Level 1 | . . 1 1 Low Security (%) 88 | 100 100 99 54 Level 1 11 | . . . 45 Level 2 . | . . . . Level 3 . | . . . . Level 4 . | . . . . Level 5 . | . . . . High Security . | . . . . Max Security . | . . . . Squads Dispatched 4 | . . 1 3 Investigation 2 | . . 1 1 Extermination . | . . . . Reinforcement 1 | . . . 1 Assault . | . . . . Garrison 1 | . . . 1 Intercept . | . . . . Searches Triggered . | . . . . Construction Impeded 1 | . . . 1 Haulers Reinforced . | . . . . Active Scanning Responses . | . . . . Cargo Convoy Interrupts . | . . . . Stealth | -11 -10 -9 -8 --------- Run | Yrd Mat Mat Mat Distress Signals 6 | . 2 . 4 Communications Jammed . | . . . . Distress Signals . | . . . . Times Spotted 51 | 1 10 11 29 Peak Tracking Total 6 | 1 2 3 6 Tactical Retreats 2 | . . 1 1 Traps | -11 -10 -9 -8 ------- Run | Yrd Mat Mat Mat Traps Triggered 2 | . 2 . . Indirectly . | . . . . Trap Hack Attempts . | . . . . Triggered . | . . . . Disarmed . | . . . . Reprogrammed . | . . . . Reused . | . . . . Traps Extracted . | . . . . Installed . | . . . . Triggered . | . . . . Machines | -11 -10 -9 -8 ---------- Run | Yrd Mat Mat Mat Machines Disabled 3 | . 1 . 2 Max in Single Turn 1 | . 1 . 1 Machines Repaired . | . . . . Machines Dismantled . | . . . . Machines Sabotaged . | . . . . Overloaded Fab Kills . | . . . . Hacking | -11 -10 -9 -8 --------- Run | Yrd Mat Mat Mat Machines Accessed 6 | . 2 3 1 Terminals 5 | . 1 3 1 Fabricators . | . . . . Repair Stations . | . . . . Recycling Units 1 | . 1 . . Scanalyzers . | . . . . Garrison Access . | . . . . Total Hacks 30 | . 16 11 3 Successful 26 | . 16 10 . Failed 4 | . . 1 3 Catastrophic . | . . . . Database Lockouts . | . . . . Manual . | . . . . Terminals 18 | . 4 11 3 Fabricators . | . . . . Repair Stations . | . . . . Recycling Units 12 | . 12 . . Scanalyzers . | . . . . Garrison Access . | . . . . Terminal Hacks 14 | . 4 10 . Record 4 | . . 4 . Prototype ID Bank 1 | . . 1 . Branch Access Points 1 | . . 1 . Emergency Access Points 1 | . . 1 . Terminal Index 1 | . . 1 . Repair Station Index 1 | . 1 . . Alert Level 2 | . 1 1 . Unreport Threat 1 | . 1 . . Surveillance Status 1 | . . 1 . Registered Components 1 | . 1 . . Fabricator Hacks . | . . . . Repair Station Hacks . | . . . . Recycling Unit Hacks 12 | . 12 . . Recycle Component 10 | . 10 . . Process 2 | . 2 . . Scanalyzer . | . . . . Garrison Access Hacks . | . . . . Unauthorized Hacks . | . . . . Terminals . | . . . . Fabricators . | . . . . Repair Stations . | . . . . Recycling Units . | . . . . Scanalyzers . | . . . . Garrison Access . | . . . . Data Cores Recovered 1 | . . . 1 Used . | . . . . Hacking Detections 6 | . 2 3 1 Full Trace Events 4 | . 1 2 1 Feedback Events . | . . . . Feedback Blocked . | . . . . Robot Schematics Acquired . | . . . . Robots Built . | . . . . Authchips . | . . . . Time . | . . . . Total Robot Build Rating . | . . . . Part Schematics Acquired . | . . . . Parts Built . | . . . . Authchips . | . . . . Time . | . . . . Total Part Build Rating . | . . . . Parts Repaired . | . . . . Time . | . . . . Parts Recycled 10 | . 10 . . Recycled Matter 361 | . 361 . . Retrieved Matter . | . . . . Retrieved Components . | . . . . Parts Scanalyzed . | . . . . Part Schematics Acquired . | . . . . Parts Damaged . | . . . . Bothacking | -11 -10 -9 -8 ------------ Run | Yrd Mat Mat Mat Used RIF Installer . | . . . . Robots Hacked . | . . . . Non-combat . | . . . . Combat . | . . . . Robot Hacks Applied . | . . . . Relay Couplers Released . | . . . . Fabnet Peak Effective % . | . . . . Robots Rewired . | . . . . Allies Hacked . | . . . . Hacks Repelled . | . . . . Allies | -11 -10 -9 -8 -------- Run | Yrd Mat Mat Mat Total Allies . | . . . . Largest Group . | . . . . Highest-Rated Group . | . . . . Highest-Rated Ally . | . . . . Total Orders . | . . . . Ally Attacks . | . . . . Total Damage . | . . . . Kills . | . . . . Allies Corrupted . | . . . . Allies Melted . | . . . . Intel | -11 -10 -9 -8 ------- Run | Yrd Mat Mat Mat Robot Analysis Total . | . . . . Derelict Logs Recovered . | . . . . Drone Launches . | . . . . Drone Recoveries . | . . . . Exploration | -11 -10 -9 -8 ------------- Run | Yrd Mat Mat Mat Turns Passed 3627 | 79 1991 663 894 Spaces Moved 832 | 75 387 235 135 Core 41 | 23 . . 18 Treads 322 | . . 205 117 Legs . | . . . . Wheels 90 | 52 38 . . Hover 379 | . 349 30 . Flight . | . . . . Fastest Speed 50 | 50 80 145 225 Average Speed 386 | 70 486 253 509 Slowest Speed 2100 | 80 540 480 2100 Overloaded Moves . | . . . . Propulsion Burnouts . | . . . . Robots Hopped . | . . . . Cave-ins Triggered . | . . . . Exploration Rate (%) 23 | 6 52 19 17 Regions Visited 3 Branch Regions . Pre-discovered Areas . | . . . . Known Exits Taken 3 | 1 1 1 . Unknown Exits Taken . | . . . . Scrap Searched . | . . . . Spaces Dug . | . . . . Terrain Destroyed 110 | . . . 110 Melee . | . . . . Projectile . | . . . . AOE 110 | . . . 110 Terrain Rammed . | . . . . Walls Destroyed . | . . . . Machines Disabled . | . . . . Actions | -11 -10 -9 -8 --------- Run | Yrd Mat Mat Mat Total 1036 | 95 441 268 232 Wait . | . . . . Move 829 | 74 386 234 135 Hop . | . . . . Pick Up 35 | 9 16 6 4 Fast Attach . | . . . . Attach 24 | 8 1 2 13 Detach 5 | 1 1 1 2 Swap 6 | . 4 1 1 Drop 3 | . 2 1 . Fire 128 | 3 29 23 73 Melee 3 | . . . 3 Ram 3 | . 2 . 1 Kick . | . . . . Crush . | . . . . Escape Stasis . | . . . . Rewire . | . . . . Trap . | . . . . Miscellaneous . | . . . . Route ------- -11/Scrapyard -10/Materials -9/Materials (discovered 2 exits: *Mat / Min) -8/Materials History --------- Turn | Location | Event 2 | -11/Scrapyard | Met Revision 17 45 | -11/Scrapyard | Identified exit to Materials 45 | -11/Scrapyard | Discovered exit to Materials (range 8) 80 | -11/Scrapyard | Entered Materials 80 | -10/Materials | Evolved 1 slot: Power x1 314 | -10/Materials | Build established: Hacker-Mutant 1657 | -10/Materials | Identified exit to Materials 1657 | -10/Materials | Discovered exit to Materials (range 15) 2071 | -10/Materials | Entered another Materials area 2071 | -9/Materials | Evolved 2 slots: Power x1, Weapon x1 2451 | -9/Materials | Identified exit to Mines 2617 | -9/Materials | Identified exit to Materials 2617 | -9/Materials | Discovered exit to Materials (range 15) 2734 | -9/Materials | Entered another Materials area 2734 | -8/Materials | Evolved 2 slots: Propulsion x1, Utility x1 3143 | -8/Materials | Garrison activated, responded to threat 3281 | -8/Materials | Lost 6 parts (2p2n2w) 3573 | -8/Materials | Core integrity fell below 50% 3607 | -8/Materials | Core integrity fell below 20% 3628 | -8/Materials | Destroyed by Y-45 Defender with Heavy Assault Rifle Last Messages --------------- K-01 Serf collects debris. U-05 Engineer builds a Wall. K-01 Serf collects debris. U-05 Engineer builds a Wall. Slammed into R-06 Scavenger. Destabilizing: System corrupted (+2). K-01 Serf collects debris. System corrupted: Energy discharge (-31). W-25 Informer distress signal alerts nearby ally. Assault Rifle destroyed. Mining Claw destroyed. R-06 Scavenger collects Imp. Heat Sink. Critical hit (Burn: +37). K-01 Serf cleans the Terminal. Critical hit (Burn: +37). K-01 Serf cleans the Terminal. Critical hit (Burn: +37). K-01 Serf cleans the Terminal. Critical hit (Burn: +37). Map ----- +----------------------------------------------------+ | ?????????????????????????????????????????????????? | | ?????????????????????????????????????????????????? | | ?????????????????????????????????????????????????? | | ?????????????????????????????????????????????????? | | ?????????????????????????????????????????????????? | | ?????????????????????????????????????????????????? | | ?????????????????????????????????????????????????? | | ?????????????????????????????????????????????????? | | ?????????????????????????????????????????????????? | | ?????????????????????????????????????????????????? | | ????????????? ???????????????????????????????????? | | ????????????? ???????????????????????????????????? | | ????????????? #??????????????????????????????????? | | ????????????# #????####??????????????????????????? | | ?????####???# #???? ???????????????????????????? | | ?????# # ##?# #???!! #??????????????????????????? | | ?######## ### ##??!! #??????????????????????????? | | ? / #? ! #??????????????????????????? | | ?? " +? ???????????????????????????? | | ???? # #??????????????????????????? | | ?????# # ???????+###????????????????? | | ?????# ???????? #????????????????? | | ?????# # #?????????T" #????????????????? | | ?????# ## ##??????? " #????????????????? | | ???### = ########### #????????????????? | | ???# # [ g @ !Y #????????????????? | | ???? # !############ ##????????????????? | | ###? # ########%#??????????? #?????????????????? | | #### =# # # =#??????????????????????????????? | | ## # ## # #####??????????????????????????????? | | ## # [ #??????????????????????????????? | | ## # " """ #??????????????????????????????? | | ## # [ #T """ #??????????????????????????????? | | ## !%%#" """ #??????????????????????????????? | | ## * + #??????????????????????????????? | | # ! =*= * """ #?????????????????????????????? | | ##! !! """ ???????????????????????????????? | | #### #! """ #??????????????????????????????? | | % #??????????????????????????????? | | #########??????????????????????????????? | | ##??????????????????????????????????????? | | #####+####???????????????????????????????????????? | | ??????????????????????????????????????????? | | ????????????????????????????????????????? | | #???????????????????????????????????????? | | * #???????????????????????????????????????? | | #???????????????????????????????????????? | | =! #???????????????????????????????????????? | | = #???????????????????????????????????????? | | #???????????????????????????????????????? | +----------------------------------------------------+ Best States ------------- Heat Dissipation 31 Energy Generation 32 Energy Capacity 455 Matter Stores 300 Matter Capacity 300 Sight Range 16 Terrain Scan Density 10 Armor Coverage 150 Resistance: KI 35 Resistance: TH 35 Resistance: EX 35 Resistance: EM 35 Resistance: I 35 Resistance: S 35 Resistance: P 35 Evasion (%) 50 Targeting Accuracy 5 Recoil Reduction 3 Offensive Hacking 20 Item Schematics ----------------- None Robot Schematics ------------------ None Fabricated ------------ Nothing Alien Tech Used ----------------- None Achievements -------------- Everything Is Under Control Let's See Who's Tougher Loot Pinata Risk Taker Challenges ------------ None Game ------ Seed AuthchipLauncherAccelerator Manual? 0 Play Time 00:26:28 Cumulative 0.8 hours Start 2024.09.17 @ 03:15:29 End 2024.09.18 @ 00:23:17 Sessions 1 Manual Loads 0 Difficulty Explorer Special Mode None Game No. 2 Rogue 0 Adventurer 0 Explorer 2 Win Type - Total 0 Types 0/0/0/0/0/0/0/0/0 Lore% 2 Gallery% 3 Achievement% 5 Wizard Run 0 Options --------- Layout 1 ASCII 0 Keyboard 0 Movement Arrows Keybinds 0 Fullscreen 1 Font 16/SmallcapsGlow Map View 50x40 Zoom Use 86% Tactical HUD 0 Map Filters NONE Filters NONE Steam SD RUN: fb2c12b0-a01c-4d02-a283-65f7bf0534cb